[Event "*** SCC Grand Prix: Titled Tuesday Blitz"]
[Site "Chess.com"]
[Date "2020.07.14"]
[Round "9"]
[White "Omk124"]
[Black "CrushingKings"]
[Result "0-1"]
[WhiteElo "2377"]
[BlackElo "2542"]
[TimeControl "180+1"]
[EndTime "11:46:30 PDT"]
[Termination "CrushingKings won by resignation"]

1. e4 {[%clk 0:03:00.9]} 1... c5 {[%clk 0:02:59.5]} 2. Nf3 {[%clk 0:03:00.8]}
2... e6 {[%clk 0:03:00.1]} 3. d4 {[%clk 0:03:01.2]} 3... cxd4 {[%clk 0:03:01]}
4. Nxd4 {[%clk 0:03:01.9]} 4... Nc6 {[%clk 0:03:01.4]} 5. g3 {[%clk 0:03:01.1]}
5... Qc7 {[%clk 0:03:00.8]} 6. Nc3 {[%clk 0:03:01.4]} 6... a6 {[%clk 0:03:01]}
7. Bg2 {[%clk 0:03:01.9]} 7... Nge7 {[%clk 0:03:01.3]} 8. O-O {[%clk 0:03:02.4]}
8... Nxd4 {[%clk 0:03:01.4]} 9. Qxd4 {[%clk 0:03:02.3]} 9... Nc6 {[%clk
0:03:02.1]} 10. Qd2 {[%clk 0:02:57.9]} 10... Ne5 {[%clk 0:02:58.6]} 11. b3
{[%clk 0:02:57]} 11... h5 {[%clk 0:02:56.2]} 12. Bb2 {[%clk 0:02:55.8]} 12... b5
{[%clk 0:02:52.6]} 13. Rfe1 {[%clk 0:02:55.3]} 13... f6 {[%clk 0:01:51.8]} 14.
Rad1 {[%clk 0:02:49.3]} 14... Bb7 {[%clk 0:01:49.8]} 15. h3 {[%clk 0:02:35.2]}
15... Bc5 {[%clk 0:01:45.2]} 16. a4 {[%clk 0:02:26.5]} 16... h4 {[%clk
0:01:19.4]} 17. g4 {[%clk 0:02:19.4]} 17... Bc6 {[%clk 0:01:11.7]} 18. axb5
{[%clk 0:02:15.3]} 18... axb5 {[%clk 0:01:12.6]} 19. Nd5 {[%clk 0:02:13]} 19...
exd5 {[%clk 0:00:33.3]} 20. exd5 {[%clk 0:02:13.9]} 20... O-O {[%clk 0:00:30.1]}
21. dxc6 {[%clk 0:02:12.1]} 21... dxc6 {[%clk 0:00:31]} 22. Kh1 {[%clk
0:02:05.2]} 22... Ra2 {[%clk 0:00:25.8]} 23. Bc3 {[%clk 0:01:50]} 23... Qb6
{[%clk 0:00:16]} 24. f4 {[%clk 0:01:48.2]} 24... Nf7 {[%clk 0:00:10.8]} 25. Ra1
{[%clk 0:01:47.6]} 25... Rxa1 {[%clk 0:00:08.7]} 26. Rxa1 {[%clk 0:01:48.5]}
26... b4 {[%clk 0:00:09.6]} 27. Bb2 {[%clk 0:01:47.7]} 27... Be3 {[%clk
0:00:09.5]} 28. Qe2 {[%clk 0:01:43.4]} 28... Bxf4 {[%clk 0:00:09.5]} 29. Qf3
{[%clk 0:01:44.1]} 29... Be5 {[%clk 0:00:08.2]} 30. Bxe5 {[%clk 0:01:38]} 30...
Nxe5 {[%clk 0:00:09.1]} 31. Qe4 {[%clk 0:01:38.6]} 31... Rd8 {[%clk 0:00:07.9]}
32. Kh2 {[%clk 0:01:34.9]} 32... Qf2 {[%clk 0:00:07.4]} 33. Rf1 {[%clk
0:01:32.3]} 33... Qg3+ {[%clk 0:00:06.1]} 34. Kh1 {[%clk 0:01:29.9]} 34... Rd2
{[%clk 0:00:07]} 35. Ra1 {[%clk 0:01:28.2]} 35... Qf2 {[%clk 0:00:02.7]} 36.
Ra8+ {[%clk 0:01:19.4]} 36... Kf7 {[%clk 0:00:02.5]} 37. Ra7+ {[%clk 0:01:20.1]}
37... Qxa7 {[%clk 0:00:02.6]} 38. Qxb4 {[%clk 0:01:18.1]} 38... Qf2 {[%clk
0:00:02.9]} 39. Qb7+ {[%clk 0:01:17.7]} 39... Kg6 {[%clk 0:00:03.3]} 40. Be4+
{[%clk 0:01:17.7]} 40... Kg5 {[%clk 0:00:03.8]} 41. Qxg7+ {[%clk 0:01:17.5]}
41... Kf4 {[%clk 0:00:04.3]} 42. Qxf6+ {[%clk 0:01:17.9]} 42... Kxe4 {[%clk
0:00:04.8]} 43. Qxf2 {[%clk 0:01:15.9]} 43... Rxf2 {[%clk 0:00:05.7]} 0-1

[Event "*** SCC Grand Prix: Titled Tuesday Blitz"]
[Site "Chess.com"]
[Date "2020.07.14"]
[Round "9"]
[White "Sanyura"]
[Black "Godzillator"]
[Result "0-1"]
[WhiteElo "2464"]
[BlackElo "2340"]
[TimeControl "180+1"]
[EndTime "11:46:33 PDT"]
[Termination "Godzillator won by resignation"]

1. g4 {[%clk 0:02:58.6]} 1... d5 {[%clk 0:02:59.5]} 2. h3 {[%clk 0:02:58.8]}
2... c6 {[%clk 0:02:58.9]} 3. Bg2 {[%clk 0:02:59]} 3... Nf6 {[%clk 0:02:58.3]}
4. d3 {[%clk 0:02:59.4]} 4... g6 {[%clk 0:02:57.3]} 5. Nc3 {[%clk 0:02:59.8]}
5... Bg7 {[%clk 0:02:57.1]} 6. Bf4 {[%clk 0:02:59.4]} 6... O-O {[%clk
0:02:56.6]} 7. Qd2 {[%clk 0:02:59.9]} 7... Nbd7 {[%clk 0:02:56.1]} 8. Nf3 {[%clk
0:03:00.6]} 8... Re8 {[%clk 0:02:55.2]} 9. O-O-O {[%clk 0:03:00.6]} 9... e5
{[%clk 0:02:55]} 10. Bh6 {[%clk 0:03:01.2]} 10... Qa5 {[%clk 0:02:53.9]} 11.
Bxg7 {[%clk 0:03:00.7]} 11... Kxg7 {[%clk 0:02:53.8]} 12. Kb1 {[%clk 0:02:57.1]}
12... d4 {[%clk 0:02:53.3]} 13. Ne4 {[%clk 0:02:57.2]} 13... Qxd2 {[%clk
0:02:53.1]} 14. Rxd2 {[%clk 0:02:57.7]} 14... Nxe4 {[%clk 0:02:52.4]} 15. dxe4
{[%clk 0:02:58.6]} 15... c5 {[%clk 0:02:51]} 16. g5 {[%clk 0:02:58.1]} 16... f6
{[%clk 0:02:50.1]} 17. h4 {[%clk 0:02:57.8]} 17... b6 {[%clk 0:02:44.9]} 18. h5
{[%clk 0:02:56.8]} 18... Bb7 {[%clk 0:02:41.9]} 19. gxf6+ {[%clk 0:02:55]} 19...
Nxf6 {[%clk 0:02:41.5]} 20. Ng5 {[%clk 0:02:54]} 20... h6 {[%clk 0:02:38.1]} 21.
Nh3 {[%clk 0:02:53.2]} 21... Bxe4 {[%clk 0:02:26.5]} 22. f3 {[%clk 0:02:48.8]}
22... Bf5 {[%clk 0:02:22.6]} 23. hxg6 {[%clk 0:02:41.3]} 23... e4 {[%clk
0:02:18.8]} 24. Nf4 {[%clk 0:02:24.3]} 24... Rad8 {[%clk 0:02:17.5]} 25. fxe4
{[%clk 0:02:09.4]} 25... Bxe4 {[%clk 0:02:15.4]} 26. Bxe4 {[%clk 0:02:06.4]}
26... Rxe4 {[%clk 0:02:14.6]} 27. Rh4 {[%clk 0:02:01.5]} 27... Rde8 {[%clk
0:02:11.7]} 28. Rd1 {[%clk 0:01:58.2]} 28... Nd5 {[%clk 0:02:02.1]} 29. Nh5+
{[%clk 0:01:56.9]} 29... Kxg6 {[%clk 0:01:59.3]} 30. Rg1+ {[%clk 0:01:57.5]}
30... Kh7 {[%clk 0:01:58.5]} 31. Rhh1 {[%clk 0:01:06.8]} 31... R8e7 {[%clk
0:01:51.3]} 32. Ng3 {[%clk 0:00:42.1]} 32... Rg4 {[%clk 0:01:41.3]} 33. Nf5
{[%clk 0:00:37.2]} 33... Rxg1+ {[%clk 0:01:31.7]} 34. Rxg1 {[%clk 0:00:38.1]}
34... Rxe2 {[%clk 0:01:30]} 35. a3 {[%clk 0:00:38.4]} 35... Ne3 {[%clk
0:01:26.9]} 36. Ng3 {[%clk 0:00:07.4]} 36... Rg2 {[%clk 0:01:22.6]} 37. Rxg2
{[%clk 0:00:06.9]} 37... Nxg2 {[%clk 0:01:22.3]} 38. c3 {[%clk 0:00:07.3]} 38...
Kg6 {[%clk 0:01:21.3]} 39. cxd4 {[%clk 0:00:07.3]} 39... cxd4 {[%clk 0:01:21.6]}
40. Kc2 {[%clk 0:00:08.2]} 40... h5 {[%clk 0:01:21.8]} 41. Kd3 {[%clk
0:00:08.3]} 41... h4 {[%clk 0:01:21.6]} 42. Ne2 {[%clk 0:00:04.4]} 42... Kg5
{[%clk 0:01:18.8]} 43. Kxd4 {[%clk 0:00:04.6]} 43... Kg4 {[%clk 0:01:18]} 44.
Ng1 {[%clk 0:00:02.8]} 44... Nf4 {[%clk 0:01:16.8]} 45. Kc4 {[%clk 0:00:02.6]}
45... Kg3 {[%clk 0:01:16.2]} 46. Kb5 {[%clk 0:00:01.5]} 46... Kg2 {[%clk
0:01:16.3]} 47. Ne2 {[%clk 0:00:01.6]} 47... Nxe2 {[%clk 0:01:15.9]} 0-1

[Event "*** SCC Grand Prix: Titled Tuesday Blitz"]
[Site "Chess.com"]
[Date "2020.07.14"]
[Round "9"]
[White "tk22h"]
[Black "LastHeroJr"]
[Result "1/2-1/2"]
[WhiteElo "2323"]
[BlackElo "2453"]
[TimeControl "180+1"]
[EndTime "11:46:36 PDT"]
[Termination "Game drawn by repetition"]

1. c4 {[%clk 0:03:00.9]} 1... e5 {[%clk 0:02:59.3]} 2. Nc3 {[%clk 0:03:00.6]}
2... Nf6 {[%clk 0:02:58.9]} 3. Nf3 {[%clk 0:03:00.6]} 3... Nc6 {[%clk
0:02:58.1]} 4. g3 {[%clk 0:03:00.6]} 4... d5 {[%clk 0:02:57.7]} 5. cxd5 {[%clk
0:03:01.5]} 5... Nxd5 {[%clk 0:02:58.5]} 6. Bg2 {[%clk 0:03:01.7]} 6... Nb6
{[%clk 0:02:58.9]} 7. O-O {[%clk 0:03:01.6]} 7... Be7 {[%clk 0:02:59.3]} 8. b3
{[%clk 0:03:01.8]} 8... O-O {[%clk 0:02:58.9]} 9. Bb2 {[%clk 0:03:02.3]} 9...
Re8 {[%clk 0:02:59.4]} 10. Rc1 {[%clk 0:03:02.7]} 10... Bf8 {[%clk 0:02:59.6]}
11. d3 {[%clk 0:02:56.3]} 11... a5 {[%clk 0:02:53.6]} 12. Nd2 {[%clk 0:02:54.8]}
12... Nd4 {[%clk 0:02:49.3]} 13. e3 {[%clk 0:02:53.5]} 13... Nf5 {[%clk
0:02:48.5]} 14. Nc4 {[%clk 0:02:52.5]} 14... Nd7 {[%clk 0:02:38.4]} 15. d4
{[%clk 0:02:47.2]} 15... exd4 {[%clk 0:02:37.4]} 16. exd4 {[%clk 0:02:47.5]}
16... Nf6 {[%clk 0:02:36.7]} 17. d5 {[%clk 0:02:43.9]} 17... Bd7 {[%clk
0:02:22.8]} 18. Re1 {[%clk 0:02:41.1]} 18... Rxe1+ {[%clk 0:02:18.6]} 19. Qxe1
{[%clk 0:02:40.4]} 19... Nd6 {[%clk 0:01:27.7]} 20. Qd2 {[%clk 0:02:33]} 20...
Nxc4 {[%clk 0:01:23.1]} 21. bxc4 {[%clk 0:02:33.8]} 21... Bc5 {[%clk 0:01:23.4]}
22. Re1 {[%clk 0:02:32.9]} 22... a4 {[%clk 0:01:15.4]} 23. Qf4 {[%clk
0:02:28.4]} 23... a3 {[%clk 0:01:11.4]} 24. Ba1 {[%clk 0:02:27.9]} 24... Bd6
{[%clk 0:01:02.4]} 25. Qh4 {[%clk 0:02:27.4]} 25... Qf8 {[%clk 0:01:00.9]} 26.
Nb5 {[%clk 0:02:25.4]} 26... Bxb5 {[%clk 0:00:58.8]} 27. cxb5 {[%clk 0:02:25.1]}
27... Nd7 {[%clk 0:00:50.8]} 28. Be4 {[%clk 0:02:14.5]} 28... h6 {[%clk
0:00:35.1]} 29. Bc2 {[%clk 0:02:11.4]} 29... Re8 {[%clk 0:00:35]} 30. Rxe8
{[%clk 0:02:06.2]} 30... Qxe8 {[%clk 0:00:35.9]} 31. Qe4 {[%clk 0:02:04.6]}
31... Qxe4 {[%clk 0:00:35.9]} 32. Bxe4 {[%clk 0:02:05.5]} 32... b6 {[%clk
0:00:22.5]} 33. Kf1 {[%clk 0:02:04.9]} 33... g6 {[%clk 0:00:16]} 34. Ke2 {[%clk
0:02:04.4]} 34... f5 {[%clk 0:00:16.3]} 35. Bc2 {[%clk 0:02:03.1]} 35... Kf7
{[%clk 0:00:13.3]} 36. Kd3 {[%clk 0:02:02.3]} 36... Nc5+ {[%clk 0:00:12.3]} 37.
Kc4 {[%clk 0:02:01.9]} 37... f4 {[%clk 0:00:10.2]} 38. Bc3 {[%clk 0:01:56.9]}
38... fxg3 {[%clk 0:00:06.4]} 39. fxg3 {[%clk 0:01:55]} 39... Nd7 {[%clk
0:00:07.3]} 40. Bb4 {[%clk 0:01:51.4]} 40... Ne5+ {[%clk 0:00:07.5]} 41. Kb3
{[%clk 0:01:50.2]} 41... Bxb4 {[%clk 0:00:07.2]} 42. Kxb4 {[%clk 0:01:50.2]}
42... Nf3 {[%clk 0:00:08.1]} 43. h4 {[%clk 0:01:47.3]} 43... Nd4 {[%clk
0:00:07.3]} 44. Bd3 {[%clk 0:01:44]} 44... g5 {[%clk 0:00:06.2]} 45. hxg5 {[%clk
0:01:43.5]} 45... hxg5 {[%clk 0:00:07.1]} 46. Kxa3 {[%clk 0:01:41.2]} 46... Ke7
{[%clk 0:00:07.4]} 47. Kb4 {[%clk 0:01:40.6]} 47... Kd6 {[%clk 0:00:07.8]} 48.
Kc4 {[%clk 0:01:40.7]} 48... Nf3 {[%clk 0:00:08.2]} 49. Be4 {[%clk 0:01:36.8]}
49... Ne5+ {[%clk 0:00:04]} 50. Kd4 {[%clk 0:01:36.8]} 50... Nd7 {[%clk
0:00:04.3]} 51. a3 {[%clk 0:01:35.8]} 51... Nc5 {[%clk 0:00:04.4]} 52. Bc2
{[%clk 0:01:34.6]} 52... Nd7 {[%clk 0:00:03.8]} 53. Be4 {[%clk 0:01:33.5]} 53...
Nc5 {[%clk 0:00:03.7]} 54. Bc2 {[%clk 0:01:33.4]} 54... Nd7 {[%clk 0:00:04]} 55.
Be4 {[%clk 0:01:33.5]} 1/2-1/2

[Event "*** SCC Grand Prix: Titled Tuesday Blitz"]
[Site "Chess.com"]
[Date "2020.07.14"]
[Round "9"]
[White "jsl796"]
[Black "Volodar_Murzin"]
[Result "0-1"]
[WhiteElo "2841"]
[BlackElo "2724"]
[TimeControl "180+1"]
[EndTime "11:46:38 PDT"]
[Termination "Volodar_Murzin won by resignation"]

1. d4 {[%clk 0:03:00.9]} 1... Nf6 {[%clk 0:02:59.7]} 2. c4 {[%clk 0:03:00.7]}
2... g6 {[%clk 0:02:59.7]} 3. Nc3 {[%clk 0:03:00.7]} 3... Bg7 {[%clk 0:03:00.2]}
4. e4 {[%clk 0:03:00.6]} 4... O-O {[%clk 0:03:00.7]} 5. h3 {[%clk 0:03:00.8]}
5... d6 {[%clk 0:03:00.2]} 6. Be3 {[%clk 0:03:01.2]} 6... e5 {[%clk 0:02:57.5]}
7. d5 {[%clk 0:03:00.9]} 7... a5 {[%clk 0:02:56.2]} 8. g4 {[%clk 0:02:59.9]}
8... Na6 {[%clk 0:02:55.6]} 9. Nge2 {[%clk 0:02:59.7]} 9... Nc5 {[%clk
0:02:55.1]} 10. Ng3 {[%clk 0:02:59.3]} 10... c6 {[%clk 0:02:53.8]} 11. Be2
{[%clk 0:02:55.5]} 11... cxd5 {[%clk 0:02:52.6]} 12. cxd5 {[%clk 0:02:55.3]}
12... a4 {[%clk 0:02:52.7]} 13. g5 {[%clk 0:02:48.3]} 13... Ne8 {[%clk
0:02:50.1]} 14. h4 {[%clk 0:02:48]} 14... Bd7 {[%clk 0:02:49.8]} 15. h5 {[%clk
0:02:45.4]} 15... b5 {[%clk 0:02:48.4]} 16. Qd2 {[%clk 0:02:34.9]} 16... Qa5
{[%clk 0:02:42.7]} 17. f3 {[%clk 0:02:26.4]} 17... Nc7 {[%clk 0:02:40.1]} 18.
hxg6 {[%clk 0:02:17]} 18... fxg6 {[%clk 0:02:38.2]} 19. Kf2 {[%clk 0:02:07.6]}
19... Rf7 {[%clk 0:02:33.1]} 20. Kg2 {[%clk 0:02:07]} 20... Bf8 {[%clk
0:02:31.2]} 21. Rac1 {[%clk 0:01:58.5]} 21... b4 {[%clk 0:02:20.3]} 22. Nd1
{[%clk 0:01:57.8]} 22... b3 {[%clk 0:02:19.8]} 23. a3 {[%clk 0:01:56.9]} 23...
Qxd2 {[%clk 0:02:18.4]} 24. Bxd2 {[%clk 0:01:57.8]} 24... Nb5 {[%clk 0:02:18.8]}
25. Be3 {[%clk 0:01:50.2]} 25... Nd4 {[%clk 0:02:13.4]} 26. Bxd4 {[%clk
0:01:47.3]} 26... exd4 {[%clk 0:02:14.3]} 27. Nf2 {[%clk 0:01:47.1]} 27... d3
{[%clk 0:02:12.2]} 28. Bxd3 {[%clk 0:01:42.6]} 28... Bg7 {[%clk 0:02:04.3]} 29.
Rb1 {[%clk 0:01:42.3]} 29... Nxd3 {[%clk 0:01:56.9]} 30. Nxd3 {[%clk 0:01:43.2]}
30... Bb5 {[%clk 0:01:57.6]} 31. Rhd1 {[%clk 0:01:39.2]} 31... Rc8 {[%clk
0:01:45.8]} 32. Ne1 {[%clk 0:01:32.2]} 32... Rc2+ {[%clk 0:01:43.2]} 33. Kg1
{[%clk 0:01:32.3]} 33... Rxb2 {[%clk 0:01:39.2]} 34. Rbc1 {[%clk 0:01:31.9]}
34... Be5 {[%clk 0:01:36.1]} 35. Rc8+ {[%clk 0:01:30.1]} 35... Kg7 {[%clk
0:01:33.9]} 36. Nf1 {[%clk 0:01:30.6]} 36... Re2 {[%clk 0:01:26.3]} 37. Nd3
{[%clk 0:01:27.7]} 37... Bxd3 {[%clk 0:01:06.8]} 38. Rxd3 {[%clk 0:01:28.6]}
38... b2 {[%clk 0:01:07.1]} 39. Rd1 {[%clk 0:01:20.2]} 39... Rxf3 {[%clk
0:01:05.7]} 40. Rb8 {[%clk 0:01:19.6]} 40... Rxe4 {[%clk 0:01:01.6]} 41. Kg2
{[%clk 0:01:17.8]} 41... Rb3 {[%clk 0:00:54.7]} 42. Rxb3 {[%clk 0:01:13]} 42...
axb3 {[%clk 0:00:55.6]} 43. Kf3 {[%clk 0:01:09.3]} 43... Ra4 {[%clk 0:00:49.1]}
44. Nd2 {[%clk 0:01:06.6]} 44... Rxa3 {[%clk 0:00:48.1]} 45. Ke4 {[%clk
0:01:03.9]} 45... Ra4+ {[%clk 0:00:44.6]} 46. Kf3 {[%clk 0:01:01.1]} 46... Rd4
{[%clk 0:00:44.2]} 47. Ke2 {[%clk 0:01:01.6]} 47... Bf4 {[%clk 0:00:37.5]} 48.
Nb1 {[%clk 0:01:00.9]} 48... Rxd1 {[%clk 0:00:36.4]} 49. Kxd1 {[%clk 0:01:01.8]}
49... Bxg5 {[%clk 0:00:37]} 50. Ke2 {[%clk 0:01:01.8]} 50... h5 {[%clk
0:00:36.7]} 51. Kf3 {[%clk 0:01:01.9]} 51... Kf6 {[%clk 0:00:33.5]} 52. Nc3
{[%clk 0:01:00.8]} 52... Ke5 {[%clk 0:00:33.4]} 0-1

[Event "*** SCC Grand Prix: Titled Tuesday Blitz"]
[Site "Chess.com"]
[Date "2020.07.14"]
[Round "9"]
[White "XiaoKangZhong"]
[Black "DinaBelenkaya"]
[Result "0-1"]
[WhiteElo "2417"]
[BlackElo "2277"]
[TimeControl "180+1"]
[EndTime "11:46:38 PDT"]
[Termination "DinaBelenkaya won by checkmate"]

1. e4 {[%clk 0:03:00.9]} 1... d5 {[%clk 0:02:52.7]} 2. exd5 {[%clk 0:02:57.6]}
2... Qxd5 {[%clk 0:02:53.6]} 3. Nc3 {[%clk 0:02:50.2]} 3... Qa5 {[%clk
0:02:52.1]} 4. d4 {[%clk 0:02:49.9]} 4... c6 {[%clk 0:02:49.3]} 5. Be3 {[%clk
0:02:47]} 5... Nf6 {[%clk 0:02:48.1]} 6. Bc4 {[%clk 0:02:43]} 6... Bf5 {[%clk
0:02:42.1]} 7. Ne2 {[%clk 0:02:33.5]} 7... e6 {[%clk 0:02:41]} 8. O-O {[%clk
0:02:33]} 8... Nbd7 {[%clk 0:02:40.3]} 9. a3 {[%clk 0:02:26.9]} 9... Qc7 {[%clk
0:02:37.6]} 10. b4 {[%clk 0:02:22.3]} 10... Bd6 {[%clk 0:02:36.1]} 11. h3 {[%clk
0:02:21.4]} 11... O-O {[%clk 0:02:34.8]} 12. Bd3 {[%clk 0:02:18]} 12... Nb6
{[%clk 0:02:30.5]} 13. Qd2 {[%clk 0:01:54.4]} 13... Rad8 {[%clk 0:02:15.7]} 14.
Rfb1 {[%clk 0:01:40.9]} 14... Bxd3 {[%clk 0:02:07.8]} 15. Qxd3 {[%clk
0:01:35.3]} 15... e5 {[%clk 0:02:07.6]} 16. Ne4 {[%clk 0:01:23.5]} 16... Nxe4
{[%clk 0:02:06.1]} 17. Qxe4 {[%clk 0:01:24.4]} 17... f5 {[%clk 0:02:06.3]} 18.
Qh4 {[%clk 0:01:12.8]} 18... f4 {[%clk 0:02:05.4]} 19. Bc1 {[%clk 0:01:01.1]}
19... f3 {[%clk 0:01:53]} 20. gxf3 {[%clk 0:01:00.1]} 20... Rxf3 {[%clk
0:01:53.9]} 21. Be3 {[%clk 0:00:41.1]} 21... Nc4 {[%clk 0:01:49.1]} 22. dxe5
{[%clk 0:00:37.5]} 22... Bxe5 {[%clk 0:01:50]} 23. Qxc4+ {[%clk 0:00:35.5]}
23... Kh8 {[%clk 0:01:37.4]} 24. Qg4 {[%clk 0:00:21.8]} 24... Rdf8 {[%clk
0:01:33.2]} 25. Ra2 {[%clk 0:00:14.5]} 25... Qf7 {[%clk 0:01:32.7]} 26. Qg2
{[%clk 0:00:12.7]} 26... Qxa2 {[%clk 0:01:30.9]} 27. Rd1 {[%clk 0:00:11.3]}
27... Qxc2 {[%clk 0:01:29.5]} 28. Rd2 {[%clk 0:00:10.3]} 28... Qb1+ {[%clk
0:01:25]} 29. Qf1 {[%clk 0:00:10.5]} 29... Qf5 {[%clk 0:01:18.1]} 30. Qg2 {[%clk
0:00:09.2]} 30... Rxh3 {[%clk 0:01:14.3]} 31. Ng3 {[%clk 0:00:05.7]} 31... Qg4
{[%clk 0:01:01.5]} 32. Rd4 {[%clk 0:00:03.2]} 32... Bxd4 {[%clk 0:00:51.3]} 33.
Bd2 {[%clk 0:00:02.5]} 33... Bxf2+ {[%clk 0:00:49.6]} 34. Kf1 {[%clk 0:00:02.7]}
34... Bxg3+ {[%clk 0:00:48.2]} 35. Kg1 {[%clk 0:00:03.1]} 35... Bf2+ {[%clk
0:00:44.7]} 36. Kf1 {[%clk 0:00:02.8]} 36... Qd1+ {[%clk 0:00:44.8]} 37. Be1
{[%clk 0:00:02.2]} 37... Qxe1# {[%clk 0:00:45.1]} 0-1

[Event "*** SCC Grand Prix: Titled Tuesday Blitz"]
[Site "Chess.com"]
[Date "2020.07.14"]
[Round "9"]
[White "Irishchessman16"]
[Black "volcanoexplorer"]
[Result "1-0"]
[WhiteElo "2423"]
[BlackElo "2571"]
[TimeControl "180+1"]
[EndTime "11:46:39 PDT"]
[Termination "Irishchessman16 won by resignation"]

1. e4 {[%clk 0:02:15.9]} 1... c6 {[%clk 0:02:55.5]} 2. d4 {[%clk 0:02:14.5]}
2... d5 {[%clk 0:02:55.3]} 3. e5 {[%clk 0:02:14.7]} 3... Bf5 {[%clk 0:02:55]} 4.
h4 {[%clk 0:02:15.1]} 4... h5 {[%clk 0:02:29.1]} 5. c4 {[%clk 0:02:09.2]} 5...
e6 {[%clk 0:02:21.7]} 6. Nc3 {[%clk 0:02:08.3]} 6... Ne7 {[%clk 0:02:21.9]} 7.
Nge2 {[%clk 0:02:07.6]} 7... Nd7 {[%clk 0:02:16]} 8. Ng3 {[%clk 0:02:05.9]} 8...
Bg6 {[%clk 0:02:16.3]} 9. Bg5 {[%clk 0:02:06.4]} 9... Qb6 {[%clk 0:02:10.1]} 10.
Rc1 {[%clk 0:02:06.3]} 10... Qxb2 {[%clk 0:02:01.5]} 11. Bd3 {[%clk 0:02:05.5]}
11... Bxd3 {[%clk 0:01:49]} 12. Qxd3 {[%clk 0:02:04.7]} 12... dxc4 {[%clk
0:01:49.8]} 13. Qxc4 {[%clk 0:02:04.7]} 13... Nb6 {[%clk 0:01:49.4]} 14. Qd3
{[%clk 0:02:01.1]} 14... Ned5 {[%clk 0:01:47.7]} 15. O-O {[%clk 0:01:57.1]}
15... Qa3 {[%clk 0:01:44.2]} 16. Rfd1 {[%clk 0:01:48.2]} 16... Nxc3 {[%clk
0:01:33.4]} 17. Rxc3 {[%clk 0:01:47.6]} 17... Qxa2 {[%clk 0:01:33.7]} 18. Rb3
{[%clk 0:01:44.3]} 18... Qa6 {[%clk 0:01:28.5]} 19. Qxa6 {[%clk 0:01:39.1]}
19... bxa6 {[%clk 0:01:29.4]} 20. Ra1 {[%clk 0:01:38.5]} 20... Be7 {[%clk
0:01:14.7]} 21. Bxe7 {[%clk 0:01:18.4]} 21... Kxe7 {[%clk 0:01:15.6]} 22. Rxa6
{[%clk 0:01:16.9]} 22... Rhd8 {[%clk 0:01:09.6]} 23. Rba3 {[%clk 0:01:16.5]}
23... Nc8 {[%clk 0:00:55.2]} 24. R3a4 {[%clk 0:01:10.8]} 24... c5 {[%clk
0:00:44.3]} 25. dxc5 {[%clk 0:01:06.8]} 25... Rd5 {[%clk 0:00:39]} 26. f4 {[%clk
0:00:57.2]} 26... Rxc5 {[%clk 0:00:35.3]} 27. Nxh5 {[%clk 0:00:56.8]} 27... g6
{[%clk 0:00:35.1]} 28. Nf6 {[%clk 0:00:56.3]} 28... Kd8 {[%clk 0:00:28.4]} 29.
Rd4+ {[%clk 0:00:51.2]} 29... Ke7 {[%clk 0:00:19.7]} 30. Rd7+ {[%clk 0:00:50.8]}
30... Kf8 {[%clk 0:00:20.1]} 31. Rd8+ {[%clk 0:00:51.5]} 31... Kg7 {[%clk
0:00:20.6]} 32. Rg8+ {[%clk 0:00:51.2]} 32... Kh6 {[%clk 0:00:21]} 33. g4 {[%clk
0:00:40.3]} 33... Rc1+ {[%clk 0:00:19.4]} 34. Kf2 {[%clk 0:00:40.1]} 34... Rc2+
{[%clk 0:00:20.1]} 35. Ke3 {[%clk 0:00:39.9]} 35... Rc3+ {[%clk 0:00:17.2]} 36.
Kd4 {[%clk 0:00:37.6]} 36... Rc4+ {[%clk 0:00:15.9]} 37. Kd3 {[%clk 0:00:32.3]}
1-0

[Event "*** SCC Grand Prix: Titled Tuesday Blitz"]
[Site "Chess.com"]
[Date "2020.07.14"]
[Round "9"]
[White "WinstonSilvakov"]
[Black "MariaFominykh"]
[Result "1-0"]
[WhiteElo "2110"]
[BlackElo "2246"]
[TimeControl "180+1"]
[EndTime "11:46:42 PDT"]
[Termination "WinstonSilvakov won on time"]

1. d4 {[%clk 0:03:00.9]} 1... d6 {[%clk 0:02:59.2]} 2. e4 {[%clk 0:03:00.1]}
2... g6 {[%clk 0:02:55.4]} 3. Nc3 {[%clk 0:03:01]} 3... Bg7 {[%clk 0:02:55.1]}
4. Bg5 {[%clk 0:03:01]} 4... a6 {[%clk 0:02:50.8]} 5. Bc4 {[%clk 0:02:56.6]}
5... b5 {[%clk 0:02:46.8]} 6. Bb3 {[%clk 0:02:47.5]} 6... Nd7 {[%clk 0:02:23]}
7. Qf3 {[%clk 0:02:41.7]} 7... f6 {[%clk 0:02:03.3]} 8. e5 {[%clk 0:02:32.7]}
8... Nb6 {[%clk 0:01:53.2]} 9. Bh4 {[%clk 0:02:18]} 9... dxe5 {[%clk 0:01:25.3]}
10. dxe5 {[%clk 0:02:13.7]} 10... Qd4 {[%clk 0:01:12.3]} 11. exf6 {[%clk
0:02:01.5]} 11... Nxf6 {[%clk 0:00:59.4]} 12. Bg3 {[%clk 0:01:55.5]} 12... Bg4
{[%clk 0:00:31.3]} 13. Qc6+ {[%clk 0:01:45.2]} 13... Bd7 {[%clk 0:00:18.7]} 14.
Qb7 {[%clk 0:01:20.9]} 14... Rc8 {[%clk 0:00:11.5]} 15. Nge2 {[%clk 0:01:18.9]}
15... Qb4 {[%clk 0:00:10.2]} 16. Qxa6 {[%clk 0:01:10.5]} 16... Nc4 {[%clk
0:00:08.7]} 17. O-O-O {[%clk 0:00:58.7]} 17... O-O {[%clk 0:00:07.3]} 18. Rxd7
{[%clk 0:00:54.4]} 18... Nxd7 {[%clk 0:00:07]} 19. Qe6+ {[%clk 0:00:55.1]} 19...
Kh8 {[%clk 0:00:06.5]} 20. Qxd7 {[%clk 0:00:55.6]} 20... Nxb2 {[%clk 0:00:04.5]}
21. Kxb2 {[%clk 0:00:53]} 21... Qc5 {[%clk 0:00:04.7]} 22. Qd5 {[%clk
0:00:48.3]} 22... Qa7 {[%clk 0:00:04.2]} 23. Qxb5 {[%clk 0:00:44.9]} 23... Rb8
{[%clk 0:00:03.9]} 24. Qd3 {[%clk 0:00:44.6]} 24... c5 {[%clk 0:00:04]} 25. Bxb8
{[%clk 0:00:39.7]} 25... Qxb8 {[%clk 0:00:02.9]} 26. Qc4 {[%clk 0:00:37]} 26...
Rc8 {[%clk 0:00:02.1]} 27. Rg1 {[%clk 0:00:35.6]} 27... Qe5 {[%clk 0:00:01.8]}
28. Rd1 {[%clk 0:00:34.3]} 28... Qxh2 {[%clk 0:00:01.4]} 29. Nf4 {[%clk
0:00:31.5]} 1-0